[Event "*** SCC Grand Prix: Titled Tuesday Blitz"]
[Site "Chess.com"]
[Date "2020.08.25"]
[Round "5"]
[White "dosto07"]
[Black "parintele_chess"]
[Result "1/2-1/2"]
[WhiteElo "2321"]
[BlackElo "2153"]
[TimeControl "180+1"]
[EndTime "10:59:56 PDT"]
[Termination "Game drawn by repetition"]

1. e4 {[%clk 0:03:00.9]} 1... e6 {[%clk 0:02:59.7]} 2. d4 {[%clk 0:03:00]} 2...
d5 {[%clk 0:02:59.4]} 3. Nd2 {[%clk 0:02:59.4]} 3... c5 {[%clk 0:02:58.7]} 4.
exd5 {[%clk 0:02:58.2]} 4... Qxd5 {[%clk 0:02:58.9]} 5. Ngf3 {[%clk 0:02:57.6]}
5... cxd4 {[%clk 0:02:59.3]} 6. Bc4 {[%clk 0:02:56.5]} 6... Qd8 {[%clk
0:02:59.8]} 7. O-O {[%clk 0:02:56.1]} 7... Nf6 {[%clk 0:02:59.5]} 8. Nb3 {[%clk
0:02:54.4]} 8... Nc6 {[%clk 0:02:59.5]} 9. Nbxd4 {[%clk 0:02:53.5]} 9... Nxd4
{[%clk 0:02:59.8]} 10. Nxd4 {[%clk 0:02:52.9]} 10... Bc5 {[%clk 0:02:55.4]} 11.
c3 {[%clk 0:02:41.3]} 11... O-O {[%clk 0:02:54.2]} 12. Bg5 {[%clk 0:02:39.3]}
12... h6 {[%clk 0:02:41.3]} 13. Bh4 {[%clk 0:02:37.8]} 13... Be7 {[%clk
0:02:41.5]} 14. Qe2 {[%clk 0:02:34.7]} 14... Nd5 {[%clk 0:02:35.7]} 15. Bxe7
{[%clk 0:02:29.2]} 15... Nxe7 {[%clk 0:02:36.6]} 16. Rad1 {[%clk 0:02:28.2]}
16... Qb6 {[%clk 0:02:25.4]} 17. Bb3 {[%clk 0:02:24.3]} 17... Nc6 {[%clk
0:02:19.9]} 18. Nxc6 {[%clk 0:02:18.8]} 18... Qxc6 {[%clk 0:02:20.8]} 19. Rfe1
{[%clk 0:02:18.9]} 19... b6 {[%clk 0:02:18.9]} 20. Qc4 {[%clk 0:02:14.2]} 20...
Bb7 {[%clk 0:02:13.9]} 21. Qxc6 {[%clk 0:02:13.3]} 21... Bxc6 {[%clk 0:02:09.2]}
22. Rd6 {[%clk 0:02:14.2]} 22... Rac8 {[%clk 0:02:03.1]} 23. Red1 {[%clk
0:02:13.3]} 23... Ba8 {[%clk 0:02:00.3]} 24. f3 {[%clk 0:02:12.6]} 24... b5
{[%clk 0:01:36.1]} 25. a4 {[%clk 0:02:07.5]} 25... bxa4 {[%clk 0:01:35.4]} 26.
Bxa4 {[%clk 0:02:06.6]} 26... Rb8 {[%clk 0:01:35.7]} 27. R1d2 {[%clk 0:02:06]}
27... Bd5 {[%clk 0:01:32.9]} 28. Bc6 {[%clk 0:01:53.6]} 28... Bxc6 {[%clk
0:01:27.3]} 29. Rxc6 {[%clk 0:01:52]} 29... Rb3 {[%clk 0:01:26.7]} 30. Ra6
{[%clk 0:01:47.9]} 30... Rfb8 {[%clk 0:01:25.8]} 31. Rxa7 {[%clk 0:01:44.3]}
31... Rxb2 {[%clk 0:01:25.8]} 32. Rxb2 {[%clk 0:01:43.3]} 32... Rxb2 {[%clk
0:01:26.7]} 33. Ra8+ {[%clk 0:01:41.5]} 33... Kh7 {[%clk 0:01:26.7]} 34. h4
{[%clk 0:01:38.6]} 34... Rc2 {[%clk 0:01:23.9]} 35. Rc8 {[%clk 0:01:37.6]} 35...
g5 {[%clk 0:01:21.3]} 36. h5 {[%clk 0:01:36.6]} 36... Kg7 {[%clk 0:01:16.2]} 37.
Rc7 {[%clk 0:01:35.4]} 37... Kf6 {[%clk 0:01:15.3]} 38. Kh2 {[%clk 0:01:34.8]}
38... Rc1 {[%clk 0:01:03.5]} 39. Kg3 {[%clk 0:01:33.8]} 39... Rc2 {[%clk
0:01:02.6]} 40. c4 {[%clk 0:01:32.5]} 40... Kg7 {[%clk 0:00:57.1]} 41. c5 {[%clk
0:01:31.3]} 41... Kg8 {[%clk 0:00:50.5]} 42. c6 {[%clk 0:01:29.6]} 42... f5
{[%clk 0:00:49.7]} 43. Rc8+ {[%clk 0:01:19.2]} 43... Kg7 {[%clk 0:00:49.4]} 44.
c7 {[%clk 0:01:18.6]} 44... e5 {[%clk 0:00:44.3]} 45. Re8 {[%clk 0:01:10.1]}
45... Rxc7 {[%clk 0:00:43.1]} 46. Rxe5 {[%clk 0:01:08.9]} 46... Kf6 {[%clk
0:00:36.9]} 47. Ra5 {[%clk 0:01:07.8]} 47... Rc2 {[%clk 0:00:34.1]} 48. Ra6+
{[%clk 0:01:06.3]} 48... Kg7 {[%clk 0:00:34.3]} 49. Rg6+ {[%clk 0:01:02.9]}
49... Kh7 {[%clk 0:00:34.3]} 50. Kh3 {[%clk 0:01:01.7]} 50... f4 {[%clk
0:00:29.3]} 51. Ra6 {[%clk 0:00:59]} 51... Kg7 {[%clk 0:00:24.7]} 52. Ra7+
{[%clk 0:00:57.7]} 52... Kf6 {[%clk 0:00:24.9]} 53. Rh7 {[%clk 0:00:56.6]} 53...
Rc1 {[%clk 0:00:24.3]} 54. Rxh6+ {[%clk 0:00:55.2]} 54... Kf5 {[%clk 0:00:24.6]}
55. Kh2 {[%clk 0:00:51.7]} 55... g4 {[%clk 0:00:24.8]} 56. fxg4+ {[%clk
0:00:48.4]} 56... Kxg4 {[%clk 0:00:25.7]} 57. Rh8 {[%clk 0:00:47.9]} 57... Rc5
{[%clk 0:00:20.1]} 58. h6 {[%clk 0:00:44]} 58... Kg5 {[%clk 0:00:18.8]} 59. h7
{[%clk 0:00:41]} 59... Kg6 {[%clk 0:00:17.8]} 60. Rf8 {[%clk 0:00:39.7]} 60...
Kxh7 {[%clk 0:00:17.1]} 61. Rxf4 {[%clk 0:00:38.7]} 61... Rc3 {[%clk 0:00:17.3]}
62. g3 {[%clk 0:00:37.6]} 62... Kg6 {[%clk 0:00:16.9]} 63. Kh3 {[%clk
0:00:38.3]} 63... Kg5 {[%clk 0:00:16.6]} 64. Ra4 {[%clk 0:00:37.6]} 64... Rd3
{[%clk 0:00:15.2]} 65. Ra5+ {[%clk 0:00:36.8]} 65... Kg6 {[%clk 0:00:15.5]} 66.
Kh4 {[%clk 0:00:37.2]} 66... Rd4+ {[%clk 0:00:15.2]} 67. g4 {[%clk 0:00:37]}
67... Rd6 {[%clk 0:00:15.7]} 68. Ra8 {[%clk 0:00:34.5]} 68... Kg7 {[%clk
0:00:14.3]} 69. Re8 {[%clk 0:00:31.2]} 69... Rd7 {[%clk 0:00:14]} 70. Re6 {[%clk
0:00:29.5]} 70... Rd4 {[%clk 0:00:11.1]} 71. Kh5 {[%clk 0:00:26.7]} 71... Rd5+
{[%clk 0:00:11.4]} 72. g5 {[%clk 0:00:26]} 72... Rd7 {[%clk 0:00:11.9]} 73. Ra6
{[%clk 0:00:25.4]} 73... Kg8 {[%clk 0:00:10.4]} 74. Rf6 {[%clk 0:00:24.6]} 74...
Rd8 {[%clk 0:00:10.2]} 75. Kh6 {[%clk 0:00:23.8]} 75... Rb8 {[%clk 0:00:10]} 76.
Kg6 {[%clk 0:00:23.5]} 76... Rd8 {[%clk 0:00:09.8]} 77. Re6 {[%clk 0:00:20.9]}
77... Rc8 {[%clk 0:00:09.4]} 78. Kf6 {[%clk 0:00:20.7]} 78... Rf8+ {[%clk
0:00:09.1]} 79. Kg6 {[%clk 0:00:19.8]} 79... Rb8 {[%clk 0:00:09.4]} 80. Re7
{[%clk 0:00:19.8]} 80... Rd8 {[%clk 0:00:09.1]} 81. Rg7+ {[%clk 0:00:18.7]}
81... Kh8 {[%clk 0:00:08.2]} 82. Rh7+ {[%clk 0:00:18.4]} 82... Kg8 {[%clk
0:00:08.4]} 83. Kh6 {[%clk 0:00:17.5]} 83... Rb8 {[%clk 0:00:07.1]} 84. Ra7
{[%clk 0:00:15.3]} 84... Rc8 {[%clk 0:00:07]} 85. g6 {[%clk 0:00:13.8]} 85...
Rd8 {[%clk 0:00:06.4]} 86. Rg7+ {[%clk 0:00:10.4]} 86... Kh8 {[%clk 0:00:05.7]}
87. Rf7 {[%clk 0:00:09.8]} 87... Kg8 {[%clk 0:00:05.7]} 88. Rg7+ {[%clk
0:00:09.1]} 88... Kh8 {[%clk 0:00:05.9]} 89. Re7 {[%clk 0:00:08.9]} 89... Kg8
{[%clk 0:00:05.9]} 90. Rg7+ {[%clk 0:00:08.8]} 1/2-1/2

[Event "*** SCC Grand Prix: Titled Tuesday Blitz"]
[Site "Chess.com"]
[Date "2020.08.25"]
[Round "5"]
[White "MikeSailer"]
[Black "stepanosinovsky"]
[Result "0-1"]
[WhiteElo "2170"]
[BlackElo "2366"]
[TimeControl "180+1"]
[EndTime "11:00:53 PDT"]
[Termination "stepanosinovsky won by resignation"]

1. d4 {[%clk 0:03:00.8]} 1... Nf6 {[%clk 0:02:58.5]} 2. Bf4 {[%clk 0:02:59.8]}
2... d6 {[%clk 0:02:57.1]} 3. e3 {[%clk 0:03:00.5]} 3... Nbd7 {[%clk 0:02:56.6]}
4. Nf3 {[%clk 0:03:01.3]} 4... g6 {[%clk 0:02:54.8]} 5. Be2 {[%clk 0:03:02.1]}
5... Bg7 {[%clk 0:02:55.7]} 6. O-O {[%clk 0:03:02.7]} 6... O-O {[%clk
0:02:56.6]} 7. h3 {[%clk 0:03:03.2]} 7... c5 {[%clk 0:02:55.8]} 8. c4 {[%clk
0:02:57.8]} 8... cxd4 {[%clk 0:02:50.3]} 9. exd4 {[%clk 0:02:57.9]} 9... Ne4
{[%clk 0:02:49.5]} 10. Nc3 {[%clk 0:02:50.3]} 10... Nxc3 {[%clk 0:02:48.7]} 11.
bxc3 {[%clk 0:02:50.4]} 11... e5 {[%clk 0:02:45.9]} 12. Bh2 {[%clk 0:02:45]}
12... Re8 {[%clk 0:02:45.1]} 13. Re1 {[%clk 0:02:32]} 13... b6 {[%clk
0:02:33.2]} 14. a4 {[%clk 0:02:27.6]} 14... Bb7 {[%clk 0:02:31.4]} 15. a5 {[%clk
0:02:28.2]} 15... bxa5 {[%clk 0:02:31.2]} 16. Qa4 {[%clk 0:02:21.7]} 16... Rc8
{[%clk 0:02:17.8]} 17. Qxa5 {[%clk 0:02:15.2]} 17... Qxa5 {[%clk 0:02:16.7]} 18.
Rxa5 {[%clk 0:02:15.6]} 18... Bxf3 {[%clk 0:02:08.1]} 19. Bxf3 {[%clk
0:02:15.7]} 19... exd4 {[%clk 0:02:07.9]} 20. Rd1 {[%clk 0:01:39.2]} 20... dxc3
{[%clk 0:01:52.1]} 21. Bxd6 {[%clk 0:01:34.3]} 21... c2 {[%clk 0:00:45]} 22. Rc1
{[%clk 0:01:32.1]} 22... Rxc4 {[%clk 0:00:45.9]} 23. Rxa7 {[%clk 0:01:24.8]}
23... Bh6 {[%clk 0:00:39.2]} 24. Rxc2 {[%clk 0:01:18]} 24... Rxc2 {[%clk
0:00:40.1]} 25. Rxd7 {[%clk 0:01:18]} 25... Rd2 {[%clk 0:00:32.6]} 26. Re7
{[%clk 0:01:00.5]} 26... Rxe7 {[%clk 0:00:31.6]} 27. Bxe7 {[%clk 0:01:01]} 27...
Bf8 {[%clk 0:00:31.9]} 28. Bxf8 {[%clk 0:00:56.3]} 28... Kxf8 {[%clk 0:00:31.4]}
29. g3 {[%clk 0:00:54.4]} 29... Rb2 {[%clk 0:00:32.3]} 30. Kg2 {[%clk
0:00:41.1]} 30... Ke7 {[%clk 0:00:33.2]} 31. Be4 {[%clk 0:00:40.6]} 31... f5
{[%clk 0:00:34.1]} 32. Bd5 {[%clk 0:00:40.3]} 32... Kf6 {[%clk 0:00:33.7]} 33.
Bc6 {[%clk 0:00:40]} 33... h5 {[%clk 0:00:32.8]} 34. h4 {[%clk 0:00:38.5]} 34...
Ke5 {[%clk 0:00:31.1]} 35. Bf3 {[%clk 0:00:37.9]} 35... Kd4 {[%clk 0:00:30.3]}
36. Bc6 {[%clk 0:00:35.8]} 36... Rb6 {[%clk 0:00:24.5]} 37. Be8 {[%clk
0:00:33.8]} 37... Re6 {[%clk 0:00:20.4]} 38. Bf7 {[%clk 0:00:28.7]} 38... Rf6
{[%clk 0:00:20.5]} 39. Be8 {[%clk 0:00:28.6]} 39... Kd3 {[%clk 0:00:21.4]} 40.
Kf3 {[%clk 0:00:26.8]} 40... Re6 {[%clk 0:00:19.3]} 41. Bf7 {[%clk 0:00:25.9]}
41... Rf6 {[%clk 0:00:18.7]} 42. Be8 {[%clk 0:00:26.1]} 42... f4 {[%clk
0:00:17.7]} 43. gxf4 {[%clk 0:00:23.8]} 43... Kd4 {[%clk 0:00:17.9]} 44. Bd7
{[%clk 0:00:20.3]} 44... Kd5 {[%clk 0:00:17.5]} 45. Bc8 {[%clk 0:00:20.3]} 45...
Kd6 {[%clk 0:00:14.6]} 46. Bb7 {[%clk 0:00:18.9]} 46... Ke7 {[%clk 0:00:13.7]}
47. Be4 {[%clk 0:00:19.1]} 47... Rb6 {[%clk 0:00:13.6]} 48. f5 {[%clk
0:00:12.7]} 48... gxf5 {[%clk 0:00:13.5]} 49. Bxf5 {[%clk 0:00:12.7]} 49... Kf6
{[%clk 0:00:14.4]} 50. Be4 {[%clk 0:00:09.3]} 50... Rb4 {[%clk 0:00:15.3]} 51.
Kf4 {[%clk 0:00:09]} 51... Ra4 {[%clk 0:00:15.1]} 52. f3 {[%clk 0:00:06.5]}
52... Rb4 {[%clk 0:00:14.8]} 53. Kg3 {[%clk 0:00:03.5]} 53... Rb2 {[%clk
0:00:14.6]} 54. Kh3 {[%clk 0:00:02.9]} 54... Ke5 {[%clk 0:00:13.6]} 55. Kg3
{[%clk 0:00:03.1]} 55... Rb6 {[%clk 0:00:12.6]} 56. Ba8 {[%clk 0:00:02.7]} 56...
Rb8 {[%clk 0:00:11.7]} 57. Be4 {[%clk 0:00:02.8]} 57... Rg8+ {[%clk 0:00:11.8]}
58. Kh3 {[%clk 0:00:03.2]} 58... Kf4 {[%clk 0:00:12]} 59. Bd5 {[%clk 0:00:03]}
59... Rg7 {[%clk 0:00:12.1]} 60. Bc6 {[%clk 0:00:02.9]} 60... Ke3 {[%clk
0:00:11.4]} 61. Be4 {[%clk 0:00:03.4]} 61... Kf2 {[%clk 0:00:11.3]} 62. Bd5
{[%clk 0:00:03.3]} 62... Rg3+ {[%clk 0:00:10.1]} 63. Kh2 {[%clk 0:00:03.8]}
63... Rg7 {[%clk 0:00:08.9]} 64. Kh3 {[%clk 0:00:04.3]} 64... Rd7 {[%clk
0:00:08]} 65. Be4 {[%clk 0:00:04.9]} 65... Rd1 {[%clk 0:00:07.4]} 66. Kh2 {[%clk
0:00:03.8]} 66... Rd2 {[%clk 0:00:07.1]} 67. Kh3 {[%clk 0:00:04.1]} 67... Rb2
{[%clk 0:00:06.4]} 68. Kh2 {[%clk 0:00:03.8]} 68... Rb4 {[%clk 0:00:03.8]} 69.
Kh3 {[%clk 0:00:04.2]} 69... Rb6 {[%clk 0:00:03.6]} 70. Kh2 {[%clk 0:00:04.8]}
70... Ke3 {[%clk 0:00:03.6]} 71. Kg3 {[%clk 0:00:04.8]} 71... Rb8 {[%clk
0:00:04.5]} 72. Kh3 {[%clk 0:00:05.2]} 72... Rg8 {[%clk 0:00:04.9]} 73. Kh2
{[%clk 0:00:05.3]} 73... Rg7 {[%clk 0:00:05.8]} 74. Kh3 {[%clk 0:00:05.5]} 74...
Kf4 {[%clk 0:00:06.1]} 75. Kh2 {[%clk 0:00:05.9]} 75... Rg3 {[%clk 0:00:06.4]}
76. Bd5 {[%clk 0:00:04.7]} 76... Rg7 {[%clk 0:00:06.6]} 77. Be4 {[%clk
0:00:04.6]} 77... Re7 {[%clk 0:00:06.5]} 78. Bd5 {[%clk 0:00:04.4]} 78... Rd7
{[%clk 0:00:06.2]} 79. Be4 {[%clk 0:00:04.6]} 79... Rd2+ {[%clk 0:00:06.1]} 80.
Kh3 {[%clk 0:00:05]} 80... Rd1 {[%clk 0:00:06.3]} 81. Kh2 {[%clk 0:00:05.4]}
81... Re1 {[%clk 0:00:05.9]} 82. Kg2 {[%clk 0:00:05.3]} 82... Re2+ {[%clk
0:00:05.4]} 83. Kh3 {[%clk 0:00:05.8]} 83... Re3 {[%clk 0:00:05.6]} 84. Bd5
{[%clk 0:00:05.9]} 84... Re5 {[%clk 0:00:05.4]} 85. Be4 {[%clk 0:00:06.4]} 85...
Rc5 {[%clk 0:00:05.3]} 86. Bb7 {[%clk 0:00:06.3]} 86... Rb5 {[%clk 0:00:05.4]}
87. Be4 {[%clk 0:00:06.9]} 87... Rb4 {[%clk 0:00:05.5]} 88. Kh2 {[%clk
0:00:07.4]} 88... Rc4 {[%clk 0:00:03.5]} 89. Kh3 {[%clk 0:00:07.6]} 89... Rc3
{[%clk 0:00:04.4]} 90. Kh2 {[%clk 0:00:08.1]} 90... Rc1 {[%clk 0:00:05.3]} 91.
Kh3 {[%clk 0:00:08.4]} 91... Re1 {[%clk 0:00:06.2]} 92. Kh2 {[%clk 0:00:08.5]}
92... Rf1 {[%clk 0:00:06.3]} 93. Kh3 {[%clk 0:00:08.1]} 93... Rh1+ {[%clk
0:00:06.6]} 94. Kg2 {[%clk 0:00:08.2]} 94... Rxh4 {[%clk 0:00:07.5]} 95. Kf2
{[%clk 0:00:07.6]} 95... Kg5 {[%clk 0:00:08.3]} 96. Ke3 {[%clk 0:00:07.9]} 96...
Rf4 {[%clk 0:00:09.2]} 97. Bd5 {[%clk 0:00:06.9]} 97... Rf6 {[%clk 0:00:10.1]}
98. Be4 {[%clk 0:00:07.3]} 98... Rf8 {[%clk 0:00:10]} 99. Kf2 {[%clk 0:00:08]}
99... Kf4 {[%clk 0:00:10.1]} 100. Kg2 {[%clk 0:00:08.5]} 100... Kg5 {[%clk
0:00:09.6]} 101. Kh3 {[%clk 0:00:08.3]} 101... Rg8 {[%clk 0:00:09.2]} 102. Kh2
{[%clk 0:00:08.5]} 102... Rg7 {[%clk 0:00:10.1]} 103. Kh3 {[%clk 0:00:09]}
103... Re7 {[%clk 0:00:09.7]} 104. Kh2 {[%clk 0:00:08.8]} 104... Kh4 {[%clk
0:00:10.6]} 105. Kg2 {[%clk 0:00:07.1]} 105... Rb7 {[%clk 0:00:11.5]} 106. f4
{[%clk 0:00:05.4]} 106... Ra7 {[%clk 0:00:12.4]} 107. f5 {[%clk 0:00:05.3]}
107... Kg5 {[%clk 0:00:12.4]} 108. Kh3 {[%clk 0:00:04.6]} 108... Ra3+ {[%clk
0:00:12.4]} 109. Kg2 {[%clk 0:00:05]} 109... Re3 {[%clk 0:00:13.1]} 110. Bc2
{[%clk 0:00:04.5]} 110... Re2+ {[%clk 0:00:12.7]} 0-1

[Event "*** SCC Grand Prix: Titled Tuesday Blitz"]
[Site "Chess.com"]
[Date "2020.08.25"]
[Round "6"]
[White "rugbyclub"]
[Black "KyrgyzFighter"]
[Result "0-1"]
[WhiteElo "2167"]
[BlackElo "2304"]
[TimeControl "180+1"]
[EndTime "11:03:02 PDT"]
[Termination "KyrgyzFighter won by resignation"]

1. c4 {[%clk 0:03:00.1]} 1... f5 {[%clk 0:02:59.5]} 2. g3 {[%clk 0:02:59.1]}
2... Nf6 {[%clk 0:02:59.8]} 3. Bg2 {[%clk 0:02:59.7]} 3... g6 {[%clk 0:03:00]}
4. d3 {[%clk 0:02:58.2]} 4... Bg7 {[%clk 0:03:00.1]} 5. Nc3 {[%clk 0:02:58.9]}
5... O-O {[%clk 0:02:59.5]} 6. e4 {[%clk 0:02:59.4]} 6... d6 {[%clk 0:02:59.3]}
7. f4 {[%clk 0:02:58.3]} 7... Nc6 {[%clk 0:02:58.2]} 8. Nf3 {[%clk 0:02:55.6]}
8... e5 {[%clk 0:02:57.8]} 9. O-O {[%clk 0:02:54.8]} 9... a6 {[%clk 0:02:55.9]}
10. h3 {[%clk 0:02:54.4]} 10... Nh5 {[%clk 0:02:53.8]} 11. Kh2 {[%clk
0:02:52.6]} 11... exf4 {[%clk 0:02:53.3]} 12. gxf4 {[%clk 0:02:51.9]} 12... fxe4
{[%clk 0:02:53.3]} 13. dxe4 {[%clk 0:02:50.4]} 13... Nxf4 {[%clk 0:02:51.7]} 14.
Ng1 {[%clk 0:02:42.9]} 14... Nxg2 {[%clk 0:02:48.7]} 15. Kxg2 {[%clk 0:02:42.5]}
15... Rxf1 {[%clk 0:02:46.7]} 16. Qxf1 {[%clk 0:02:42.3]} 16... Be6 {[%clk
0:02:46.7]} 17. Nd5 {[%clk 0:02:41.9]} 17... Qh4 {[%clk 0:02:46]} 18. Qf4 {[%clk
0:02:34.8]} 18... Qe1 {[%clk 0:02:33]} 19. Be3 {[%clk 0:02:33.2]} 19... Qxa1
{[%clk 0:02:30.5]} 0-1

[Event "*** SCC Grand Prix: Titled Tuesday Blitz"]
[Site "Chess.com"]
[Date "2020.08.25"]
[Round "6"]
[White "korkmaz16"]
[Black "maximnovik"]
[Result "0-1"]
[WhiteElo "2305"]
[BlackElo "2474"]
[TimeControl "180+1"]
[EndTime "11:04:26 PDT"]
[Termination "maximnovik won by resignation"]

1. e4 {[%clk 0:02:56.7]} 1... c6 {[%clk 0:02:48.6]} 2. d4 {[%clk 0:02:55.6]}
2... d5 {[%clk 0:02:49.1]} 3. e5 {[%clk 0:02:55.6]} 3... Bf5 {[%clk 0:02:48.4]}
4. h4 {[%clk 0:02:55.4]} 4... h6 {[%clk 0:02:47.4]} 5. g4 {[%clk 0:02:53.3]}
5... Bd7 {[%clk 0:02:47.9]} 6. h5 {[%clk 0:02:43.7]} 6... c5 {[%clk 0:02:47.6]}
7. c3 {[%clk 0:02:42.7]} 7... Nc6 {[%clk 0:02:47.2]} 8. f4 {[%clk 0:02:41.8]}
8... cxd4 {[%clk 0:02:45.7]} 9. cxd4 {[%clk 0:02:41.6]} 9... Qb6 {[%clk
0:02:45.8]} 10. Nf3 {[%clk 0:02:41.6]} 10... Bxg4 {[%clk 0:02:45.2]} 11. Be2
{[%clk 0:02:33.5]} 11... e6 {[%clk 0:02:42.5]} 12. Nc3 {[%clk 0:02:15.7]} 12...
Bxf3 {[%clk 0:02:39.9]} 13. Bxf3 {[%clk 0:02:15.8]} 13... Nxd4 {[%clk
0:02:36.2]} 14. Qa4+ {[%clk 0:02:07.7]} 14... Nc6 {[%clk 0:02:33.4]} 15. Ke2
{[%clk 0:01:58.8]} 15... Ne7 {[%clk 0:02:26.5]} 16. Rb1 {[%clk 0:01:46.3]} 16...
Nf5 {[%clk 0:02:24.5]} 17. Rh3 {[%clk 0:01:31.2]} 17... Bb4 {[%clk 0:02:18.4]}
18. Nb5 {[%clk 0:01:27.9]} 18... Qxb5+ {[%clk 0:02:11.5]} 0-1

[Event "*** SCC Grand Prix: Titled Tuesday Blitz"]
[Site "Chess.com"]
[Date "2020.08.25"]
[Round "6"]
[White "RusPakhom"]
[Black "FearNoEvil12"]
[Result "1-0"]
[WhiteElo "2280"]
[BlackElo "1970"]
[TimeControl "180+1"]
[EndTime "11:04:36 PDT"]
[Termination "RusPakhom won by resignation"]

1. e4 {[%clk 0:02:59.8]} 1... a6 {[%clk 0:02:58.7]} 2. c4 {[%clk 0:02:57.9]}
2... b6 {[%clk 0:02:57.8]} 3. d4 {[%clk 0:02:57.5]} 3... Bb7 {[%clk 0:02:58.2]}
4. Nc3 {[%clk 0:02:58]} 4... e6 {[%clk 0:02:57.5]} 5. Nf3 {[%clk 0:02:56.6]}
5... c5 {[%clk 0:02:55.1]} 6. Be3 {[%clk 0:02:55.7]} 6... d6 {[%clk 0:02:54.7]}
7. Be2 {[%clk 0:02:55.2]} 7... Nd7 {[%clk 0:02:53]} 8. Qd2 {[%clk 0:02:54.8]}
8... g6 {[%clk 0:02:51]} 9. O-O {[%clk 0:02:54.2]} 9... Ne7 {[%clk 0:02:47.5]}
10. Rfd1 {[%clk 0:02:53.8]} 10... Qc7 {[%clk 0:02:45.9]} 11. Rac1 {[%clk
0:02:53]} 11... Bg7 {[%clk 0:02:43.3]} 12. b4 {[%clk 0:02:36.4]} 12... cxb4
{[%clk 0:02:36.6]} 13. Na4 {[%clk 0:02:36.4]} 13... O-O {[%clk 0:02:29.3]} 14.
Qxb4 {[%clk 0:02:31.7]} 14... Bxe4 {[%clk 0:02:27.5]} 15. c5 {[%clk 0:02:24.7]}
15... dxc5 {[%clk 0:02:23.7]} 16. dxc5 {[%clk 0:02:25.6]} 16... bxc5 {[%clk
0:02:22]} 17. Nxc5 {[%clk 0:02:21.6]} 17... Nxc5 {[%clk 0:02:16.8]} 18. Bxc5
{[%clk 0:02:21.8]} 18... Bxf3 {[%clk 0:02:05.2]} 19. Bxe7 {[%clk 0:02:18.2]}
19... Bxe2 {[%clk 0:01:47.3]} 20. Rxc7 {[%clk 0:02:16.3]} 20... Bxd1 {[%clk
0:01:46.2]} 21. Bxf8 {[%clk 0:02:16]} 21... Bxf8 {[%clk 0:01:44.7]} 22. Qb7
{[%clk 0:02:15.2]} 22... Re8 {[%clk 0:01:38.9]} 23. Rxf7 {[%clk 0:02:14.7]}
23... Be2 {[%clk 0:01:31.5]} 24. Rxh7 {[%clk 0:02:13]} 1-0

[Event "*** SCC Grand Prix: Titled Tuesday Blitz"]
[Site "Chess.com"]
[Date "2020.08.25"]
[Round "6"]
[White "AldokhinIvan"]
[Black "Cambek64"]
[Result "1-0"]
[WhiteElo "2542"]
[BlackElo "2342"]
[TimeControl "180+1"]
[EndTime "11:05:12 PDT"]
[Termination "AldokhinIvan won on time"]

1. d4 {[%clk 0:03:00.9]} 1... d6 {[%clk 0:02:55.4]} 2. e4 {[%clk 0:02:59.2]}
2... e5 {[%clk 0:01:33.9]} 3. Ne2 {[%clk 0:02:58.2]} 3... Nc6 {[%clk 0:01:23.6]}
4. Nbc3 {[%clk 0:02:50.1]} 4... g6 {[%clk 0:01:22.2]} 5. Be3 {[%clk 0:02:44]}
5... Bg7 {[%clk 0:01:22]} 6. h3 {[%clk 0:02:44.1]} 6... Nf6 {[%clk 0:01:18.1]}
7. g4 {[%clk 0:02:43.2]} 7... O-O {[%clk 0:01:17.3]} 8. Bg2 {[%clk 0:02:43.4]}
8... Re8 {[%clk 0:01:16.7]} 9. Qd2 {[%clk 0:02:40.3]} 9... exd4 {[%clk
0:00:04.1]} 10. Nxd4 {[%clk 0:02:39.9]} 10... Nxd4 {[%clk 0:00:03.1]} 11. Bxd4
{[%clk 0:02:36.9]} 11... Be6 {[%clk 0:00:01.3]} 12. O-O-O {[%clk 0:02:34.1]} 1-0

[Event "*** SCC Grand Prix: Titled Tuesday Blitz"]
[Site "Chess.com"]
[Date "2020.08.25"]
[Round "6"]
[White "politeplayer"]
[Black "InitiatingASC"]
[Result "1-0"]
[WhiteElo "2213"]
[BlackElo "2319"]
[TimeControl "180+1"]
[EndTime "11:05:14 PDT"]
[Termination "politeplayer won by resignation"]

1. e4 {[%clk 0:03:00.9]} 1... c5 {[%clk 0:02:57.2]} 2. d4 {[%clk 0:03:01.3]}
2... cxd4 {[%clk 0:02:54.9]} 3. c3 {[%clk 0:03:01.8]} 3... Nc6 {[%clk
0:02:53.5]} 4. cxd4 {[%clk 0:02:59.9]} 4... d5 {[%clk 0:02:53.7]} 5. exd5 {[%clk
0:02:59.8]} 5... Qxd5 {[%clk 0:02:53.4]} 6. Nf3 {[%clk 0:03:00.3]} 6... Bg4
{[%clk 0:02:51.8]} 7. Nc3 {[%clk 0:03:00.1]} 7... Qa5 {[%clk 0:02:51.3]} 8. Bd2
{[%clk 0:02:50.6]} 8... e6 {[%clk 0:02:49.7]} 9. Nb5 {[%clk 0:02:36.9]} 9... Qb6
{[%clk 0:02:41.1]} 10. a4 {[%clk 0:02:27.2]} 10... Nf6 {[%clk 0:02:39.4]} 11. a5
{[%clk 0:02:22.2]} 11... Qd8 {[%clk 0:02:37.8]} 12. a6 {[%clk 0:02:16.1]} 12...
b6 {[%clk 0:02:34.7]} 13. h3 {[%clk 0:02:04.9]} 13... Bh5 {[%clk 0:02:27.4]} 14.
Rc1 {[%clk 0:01:42.4]} 14... Rc8 {[%clk 0:02:20.3]} 15. Qa4 {[%clk 0:01:41.9]}
15... Qd7 {[%clk 0:02:14.4]} 16. Ne5 {[%clk 0:01:12.4]} 16... Qd5 {[%clk
0:01:42.1]} 17. Nxc6 {[%clk 0:01:05.6]} 17... Rxc6 {[%clk 0:01:41.6]} 18. Nc7+
{[%clk 0:01:02.2]} 1-0